Cogmind - Beta 13 @@@ ROGUE MODE // 2024.04.09 @ 21:57:32 Player: Luna Result: Smashed by cave-in Performance ------------- Evolutions (1) 500 Regions Visited (4) 800 Robots Destroyed (54) 270 Value Destroyed (1275) 1275 Prototype IDs (3) 60 Alien Tech Used (0) 0 Bonus (158) 158 TOTAL SCORE: 3063 Bonus ------- High Alert Combat Kills 73 Follower Combat Kills 85 Cogmind --------- Core Integrity 0/400 Matter 290/300 Energy 96/250 System Corruption 9% Temperature Warm (166) Movement Walking (190) Ox1 Location -9/Mines Parts ------- > --- POWER (1) -------- Ion Engine > --- PROPULSION (3) --- Aluminum Leg Aluminum Leg Aluminum Leg > --- UTILITY (3) ------ High-capacity Storage Unit Improved Sensor Array Light Armor Plating > --- WEAPON (2) ------- (None) > --- INVENTORY (20) --- Ion Engine Light Ion Engine Advanced Treads Aluminum Leg High-capacity Matter Pod (99) Weight Redist. System Visual Processing Unit Improved Sensor Array Improved Sensor Array Weapon Shielding Weapon Shielding Weapon Shielding Beam Rifle Heavy Assault Rifle Shotgun Improved Assault Rifle Rocket Launcher Mini Grenade Launcher Peak State ------------ > --- POWER ------------ Light Ion Engine > --- PROPULSION ------- Advanced Treads Advanced Treads Advanced Treads > --- UTILITY ---------- Improved Heat Sink High-capacity Storage Unit Improved Sensor Array > --- WEAPON ----------- Improved Assault Rifle Scythe > --- INVENTORY -------- Light Ion Engine Advanced Treads High-capacity Matter Pod Weight Redist. System Visual Processing Unit Improved Sensor Array Improved Sensor Array Weapon Shielding Weapon Shielding Weapon Shielding Light Armor Plating Heavy Assault Rifle Rocket Launcher Mini Grenade Launcher Flail [Rating: 25] Favorites ----------- Power Ion Engine Engine Ion Engine Propulsion Aluminum Leg Treads Advanced Treads Leg Aluminum Leg Flight Unit VTOL Module Utility Medium Armor Plating Device Improved Sensor Array Storage High-capacity Storage Unit Processor Visual Processing Unit Protection Medium Armor Plating Weapon Heavy Assault Rifle Energy Gun EM Pulse Gun Energy Cannon Particle Cannon Ballistic Gun Heavy Assault Rifle Launcher Mini Grenade Launcher Special Weapon Mining Laser Impact Weapon Flail Slashing Weapon Scythe Build | -11 -10 -10 -9 -9 ------- Run | Yrd Mat Min Mat Min Slots Evolved 2 | . . . 2 . Power . | . . . . . Propulsion 1 | . . . 1 . Utility 1 | . . . 1 . Weapon . | . . . . . Parts Attached 65 | 5 25 6 27 2 Power 7 | 1 2 2 2 . Engine 7 | 1 2 2 2 . Core . | . . . . . Reactor . | . . . . . Propulsion 19 | 2 3 3 11 . Treads 4 | . . . 4 . Leg 13 | 2 1 3 7 . Wheel . | . . . . . Hover . | . . . . . Flight 2 | . 2 . . . Utility 11 | . 6 . 5 . Device 2 | . . . 2 . Storage 2 | . 1 . 1 . Processor 1 | . . . 1 . Hackware . | . . . . . Protection 6 | . 5 . 1 . Artifact . | . . . . . Weapon 28 | 2 14 1 9 2 Energy Gun 2 | 2 . . . . Energy Cannon 5 | . 5 . . . Ballistic Gun 9 | . 3 . 6 . Ballistic Cannon . | . . . . . Launcher 8 | . 6 1 1 . Special Weapon 2 | . . . . 2 Impact Weapon 1 | . . . 1 . Slashing Weapon 1 | . . . 1 . Piercing Weapon . | . . . . . Special Melee Weapon . | . . . . . Unidentified Prototypes 1 | . . . 1 . Parts Lost 12 | . 1 . 9 2 Power 3 | . 1 . 2 . Propulsion 3 | . . . 3 . Utility 3 | . . . 3 . Weapon 3 | . . . 1 2 Highest Loss Streak 4 | . 1 . 4 2 To Critical Strikes . | . . . . . Average Slot Usage (%) 94 | . 95 96 91 100 Engine 11 | . 14 12 9 11 Treads 4 | . . . 12 . Leg 22 | . 25 26 16 33 Device 4 | . . . 10 11 Storage 4 | . . . 11 11 Protection 20 | . 27 28 8 11 Energy Cannon 2 | . 10 . . . Ballistic Gun 13 | . 4 14 19 4 Launcher 8 | . 10 14 1 . Naked Turns . | . . . . . Heaviest Build 66 | 6 27 26 66 53 Greatest Support 66 | 20 20 20 66 30 Greatest Overweight (x) 16 | . 6 1 16 1 Average Overweight (x) . | . 1 1 . 1 Largest Inventory Capacity 20 | 5 20 5 20 20 Average Capacity 10 | 5 5 5 19 20 Most Carried 18 | 4 5 5 18 18 Average Carried 6 | 1 4 4 10 18 Final Capacity 20 | 5 5 5 20 20 Final Carried 18 | 4 5 5 18 18 Class Distribution -------------------- 80% | Mutant 19% | Scavenger-Mutant Dominant Class ---------------- Mutant | -10/Materials Mutant | -10/Mines Mutant | -9/Materials Scavenger-Mutant | -9/Mines Resources | -11 -10 -10 -9 -9 ----------- Run | Yrd Mat Min Mat Min Matter Collected 1609 | 250 125 274 960 . Remotely . | . . . . . Salvage Created 1211 | 44 186 . 981 . Parts 97 | 3 19 . 75 . Haulers Intercepted 1 | . . . 1 . Recyclers Shooed 1 | . 1 . . . Parts Field Recycled . | . . . . . Retrieved Matter . | . . . . . Parts Self-Destructed . | . . . . . Prevented . | . . . . . Kills | -11 -10 -10 -9 -9 ------- Run | Yrd Mat Min Mat Min Combat Hostiles Destroyed 40 | 1 9 . 30 . Guns 25 | 1 . . 24 . AOE 15 | . 9 . 6 . Classes Destroyed 10 | 1 5 . 4 . Worker 2 | . 1 . 1 . Builder 2 | . . . 2 . Tunneler 2 | . 2 . . . Hauler 1 | . . . 1 . Recycler 2 | . 1 . 1 . Watcher 5 | . 2 . 3 . Swarmer 14 | . 6 . 8 . Grunt 23 | 1 3 . 19 . Duelist 1 | . . . 1 . Sentry 2 | . . . 2 . Best Kill Streak 16 | 1 4 . 16 . Combat Bots Only 9 | 1 3 . 9 . Max Kills in Single Turn 4 | 1 4 . 2 . Gunslinging 1 | . . . 1 . Exploded 3 | . 3 . 1 . Melee . | . . . . . Uniques/NPCs Destroyed . | . . . . . Combat | -11 -10 -10 -9 -9 -------- Run | Yrd Mat Min Mat Min Hostile Shots Fired 252 | 2 45 3 202 . Missed 76 | . 14 1 61 . Damage Taken 2664 | 20 409 29 1921 285 Core 471 | . 44 . 391 36 Absorbed by Shields . | . . . . . Core Remaining (%) 91 | 100 . 82 . . Volleys Fired 119 | 2 28 10 74 5 Largest 2 | 2 2 2 2 2 Hottest 200 | 80 136 56 53 200 Shots Fired 190 | 4 41 13 122 10 Gun 120 | 4 . 7 109 . Cannon 22 | . 22 . . . Launcher 38 | . 19 6 13 . Special 10 | . . . . 10 Kinetic 116 | . . 7 109 . Thermal 34 | 2 22 . . 10 Explosive 38 | . 19 6 13 . Electromagnetic 2 | 2 . . . . Robot Hit Streak 14 | 4 4 . 14 . Robot Miss Streak 9 | . 9 4 9 . Penetration Max . | . . . . . Secondary Targets 3 | . . . 3 . Max Gunslinging Chain 1 | . . . 1 . Shots Hit Robots 96 | 4 12 . 80 . Core Hits 71 | 2 16 . 53 . Critical Kills . | . . . . . Critical Parts Destroyed . | . . . . . Critical Strikes . | . . . . . Melee Attacks 12 | . . . 12 . Impact 9 | . . . 9 . Slashing 3 | . . . 3 . Piercing . | . . . . . Sneak Attacks . | . . . . . Combat Hostiles . | . . . . . Follow-up Attacks 2 | . . . 2 . Damage Inflicted 3338 | 51 1144 . 2143 . Guns 1152 | 51 . . 1101 . Cannons 204 | . 204 . . . Explosions 1780 | . 940 . 840 . Melee 202 | . . . 202 . Ramming . | . . . . . Kinetic 1101 | . . . 1101 . Thermal 281 | 21 204 . 56 . Explosive 1724 | . 940 . 784 . Electromagnetic 30 | 30 . . . . Impact 155 | . . . 155 . Slashing 47 | . . . 47 . Piercing . | . . . . . Highest Corruption . | . . . . . Average Corruption . | . . . . . Corruption Purged . | . . . . . Corruption Blocked . | . . . . . Overload Shots . | . . . . . Overflow Damage 92 | . 58 . 34 . Projectiles . | . . . . . Explosions 75 | . 58 . 17 . Melee 17 | . . . 17 . Knockbacks . | . . . . . Impact . | . . . . . Kinetic . | . . . . . Secondary . | . . . . . Self-Inflicted Damage 172 | . 56 . 116 . Shots 7 | . 2 . 5 . Rammed . | . . . . . Targets Rammed . | . . . . . Kicked . | . . . . . Crushed . | . . . . . Highest Temperature 476 | 48 476 28 29 187 Average Temperature 133 | 28 191 10 9 115 Received Heat Transfer 702 | 12 174 18 498 . Effects 7 | . 7 . . . Shutdowns 1 | . 1 . . . Energy Bleed 1 | . 1 . . . Interference 1 | . 1 . . . Matter Decay 1 | . 1 . . . Short Circuit 2 | . 2 . . . Damage (minor) 1 | . 1 . . . Siege Activations . | . . . . . Robots Corrupted . | . . . . . Combat Hostiles . | . . . . . Parts Fried . | . . . . . Impact Corruptions 2 | . . . 2 . Robots Melted . | . . . . . Combat Hostiles . | . . . . . Parts Melted . | . . . . . Heat Transferred 470 | 50 370 . 50 . Parts Sabotaged . | . . . . . Parts Stolen . | . . . . . Parts Stripped . | . . . . . Power Chain Reactions . | . . . . . Alert | -11 -10 -10 -9 -9 ------- Run | Yrd Mat Min Mat Min Peak Influence 522 | 20 288 108 522 137 Initial 131 | . 13 108 3 131 Average 169 | 3 164 40 308 133 Maximum Alert Level 2 | . 1 . 2 . Low Security (%) 61 | 100 60 100 20 100 Level 1 29 | . 39 . 55 . Level 2 8 | . . . 23 . Level 3 . | . . . . . Level 4 . | . . . . . Level 5 . | . . . . . High Security . | . . . . . Max Security . | . . . . . Squads Dispatched 7 | . 2 . 5 . Investigation 4 | . 1 . 3 . Extermination . | . . . . . Reinforcement 3 | . 1 . 2 . Assault . | . . . . . Garrison . | . . . . . Intercept . | . . . . . Searches Triggered . | . . . . . Construction Impeded 1 | . . . 1 . Haulers Reinforced . | . . . . . Active Scanning Responses . | . . . . . Cargo Convoy Interrupts . | . . . . . Stealth | -11 -10 -10 -9 -9 --------- Run | Yrd Mat Min Mat Min Distress Signals 2 | . 1 . 1 . Communications Jammed . | . . . . . Distress Signals . | . . . . . Times Spotted 59 | 1 19 4 35 . Peak Tracking Total 5 | 1 5 2 5 . Tactical Retreats . | . . . . . Traps | -11 -10 -10 -9 -9 ------- Run | Yrd Mat Min Mat Min Traps Triggered 1 | . . . 1 . Indirectly . | . . . . . Trap Hack Attempts . | . . . . . Triggered . | . . . . . Disarmed . | . . . . . Reprogrammed . | . . . . . Reused . | . . . . . Traps Extracted . | . . . . . Installed . | . . . . . Triggered . | . . . . . Machines | -11 -10 -10 -9 -9 ---------- Run | Yrd Mat Min Mat Min Machines Disabled 7 | . 5 . 2 . Max in Single Turn 2 | . 2 . 1 . Machines Repaired . | . . . . . Machines Dismantled . | . . . . . Machines Sabotaged . | . . . . . Overloaded Fab Kills . | . . . . . Hacking | -11 -10 -10 -9 -9 --------- Run | Yrd Mat Min Mat Min Machines Accessed 7 | . 3 . 4 . Terminals 5 | . 2 . 3 . Fabricators . | . . . . . Repair Stations . | . . . . . Recycling Units 1 | . 1 . . . Scanalyzers 1 | . . . 1 . Garrison Access . | . . . . . Total Hacks 34 | . 14 . 20 . Successful 23 | . 11 . 12 . Failed 11 | . 3 . 8 . Catastrophic 2 | . 2 . . . Database Lockouts . | . . . . . Manual 1 | . 1 . . . Terminals 24 | . 9 . 15 . Fabricators . | . . . . . Repair Stations . | . . . . . Recycling Units 5 | . 5 . . . Scanalyzers 5 | . . . 5 . Garrison Access . | . . . . . Terminal Hacks 14 | . 6 . 8 . Record 5 | . 1 . 4 . Prototype ID Bank 1 | . 1 . . . Emergency Access Points 1 | . . . 1 . Alert Level 1 | . . . 1 . Locate Traps 1 | . 1 . . . Maintenance Status 1 | . . . 1 . Recall Investigation 1 | . 1 . . . Zone Layout 3 | . 2 . 1 . Fabricator Hacks . | . . . . . Repair Station Hacks . | . . . . . Recycling Unit Hacks 5 | . 5 . . . Recycle Component 1 | . 1 . . . Process 1 | . 1 . . . Report Inventory 1 | . 1 . . . Retrieve Matter 2 | . 2 . . . Scanalyzer 4 | . . . 4 . Insert Component 2 | . . . 2 . Analyze 2 | . . . 2 . Garrison Access Hacks . | . . . . . Unauthorized Hacks . | . . . . . Terminals . | . . . . . Fabricators . | . . . . . Repair Stations . | . . . . . Recycling Units . | . . . . . Scanalyzers . | . . . . . Garrison Access . | . . . . . Data Cores Recovered . | . . . . . Used . | . . . . . Hacking Detections 4 | . 1 . 3 . Full Trace Events 3 | . 1 . 2 . Feedback Events . | . . . . . Feedback Blocked . | . . . . . Robot Schematics Acquired . | . . . . . Robots Built . | . . . . . Authchips . | . . . . . Time . | . . . . . Total Robot Build Rating . | . . . . . Part Schematics Acquired 1 | . . . 1 . Parts Built . | . . . . . Authchips . | . . . . . Time . | . . . . . Total Part Build Rating . | . . . . . Parts Repaired . | . . . . . Time . | . . . . . Parts Recycled 1 | . 1 . . . Recycled Matter 128 | . 128 . . . Retrieved Matter 128 | . 128 . . . Retrieved Components . | . . . . . Parts Scanalyzed 2 | . . . 2 . Part Schematics Acquired 1 | . . . 1 . Parts Damaged . | . . . . . Bothacking | -11 -10 -10 -9 -9 ------------ Run | Yrd Mat Min Mat Min Used RIF Installer . | . . . . . Robots Hacked . | . . . . . Non-combat . | . . . . . Combat . | . . . . . Robot Hacks Applied . | . . . . . Relay Couplers Released . | . . . . . Fabnet Peak Effective % . | . . . . . Robots Rewired . | . . . . . Allies Hacked . | . . . . . Hacks Repelled . | . . . . . Allies | -11 -10 -10 -9 -9 -------- Run | Yrd Mat Min Mat Min Total Allies 3 | . . 3 . . Largest Group 3 | . . 3 2 . Highest-Rated Group 40 | . . 40 24 . Highest-Rated Ally 16 | . . 16 16 . Total Orders 1 | . . 1 . . AID 1 | . . 1 . . Ally Attacks 19 | . . 12 7 . Total Damage 185 | . . 168 17 . Kills 4 | . . 3 1 . Allies Corrupted . | . . . . . Allies Melted . | . . . . . Intel | -11 -10 -10 -9 -9 ------- Run | Yrd Mat Min Mat Min Robot Analysis Total . | . . . . . Derelict Logs Recovered 3 | . . 3 . . Drone Launches . | . . . . . Drone Recoveries . | . . . . . Exploration | -11 -10 -10 -9 -9 ------------- Run | Yrd Mat Min Mat Min Turns Passed 3357 | 98 759 1193 1254 53 Spaces Moved 1469 | 69 293 601 497 9 Core 23 | 20 2 . 1 . Treads 263 | . . . 263 . Legs 1181 | 49 289 601 233 9 Wheels . | . . . . . Hover . | . . . . . Flight 2 | . 2 . . . Fastest Speed 50 | 50 120 190 145 190 Average Speed 190 | 99 209 190 193 190 Slowest Speed 850 | 120 435 190 850 190 Overloaded Moves . | . . . . . Propulsion Burnouts . | . . . . . Robots Hopped . | . . . . . Cave-ins Triggered 1 | . . . . 1 Exploration Rate (%) 37 | 7 42 93 41 2 Regions Visited 4 Branch Regions 2 Pre-discovered Areas 1 | . . 1 . . Known Exits Taken . | . . . . . Unknown Exits Taken 4 | 1 1 1 1 . Scrap Searched 1 | . . 1 . . Spaces Dug 76 | . . 58 10 8 Terrain Destroyed 249 | . 113 72 55 9 Melee . | . . . . . Projectile 9 | . . . . 9 AOE 240 | . 113 72 55 . Terrain Rammed . | . . . . . Walls Destroyed . | . . . . . Machines Disabled . | . . . . . Actions | -11 -10 -10 -9 -9 --------- Run | Yrd Mat Min Mat Min Total 1814 | 94 406 641 654 19 Wait 34 | 10 11 9 1 3 Move 1465 | 68 292 600 496 9 Hop . | . . . . . Pick Up 78 | 9 24 9 36 . Fast Attach . | . . . . . Attach 40 | 5 16 2 17 . Detach 5 | . 5 . . . Swap 25 | . 9 4 10 2 Drop 38 | . 21 7 10 . Fire 119 | 2 28 10 74 5 Melee 10 | . . . 10 . Ram . | . . . . . Kick . | . . . . . Crush . | . . . . . Escape Stasis . | . . . . . Rewire . | . . . . . Trap . | . . . . . Miscellaneous . | . . . . . Route ------- -11/Scrapyard -10/Materials (discovered 2 exits: *Mat / [*Min]) -10/Mines (discovered 3 exits: *Mat x2 / Exi) -9/Materials (discovered 3 exits: [Mat] / [*Min x2]) -9/Mines History --------- Turn | Location | Event 2 | -11/Scrapyard | Met Revision 17 70 | -11/Scrapyard | Discovered new exit (range 8) 99 | -11/Scrapyard | Entered Materials 327 | -10/Materials | Build established: Mutant 775 | -10/Materials | Discovered new exit (range 16) 835 | -10/Materials | Discovered new exit (range 10) 858 | -10/Materials | Entered Mines 966 | -10/Mines | Met a Derelict bent on vengeance 1062 | -10/Mines | Assisted by bots powering up and referring to "LRC-V3" 1072 | -10/Mines | Learned location of Zion (-7) 1157 | -10/Mines | Learned Materials terminal intel 1281 | -10/Mines | Deemed a non-threat by the Exiles lab entrance 1399 | -10/Mines | Discovered new exit (range 7) 1456 | -10/Mines | Received a Rocket Launcher from a helpful Derelict 1529 | -10/Mines | Discovered new exit (range 6) 1633 | -10/Mines | Identified exit to Exiles 2051 | -10/Mines | Entered Materials 2051 | -9/Materials | Accompanied by 2 allies 2051 | -9/Materials | Evolved 2 slots: Propulsion x1, Utility x1 2052 | -9/Materials | Loaded intel: 12 terminal locations 2400 | -9/Materials | Destroyed 9 combat bots 2404 | -9/Materials | Lost 4 parts (1p1n1u1w) 2805 | -9/Materials | Core integrity fell below 50% 2827 | -9/Materials | Core integrity fell below 20% 2840 | -9/Materials | Lost 3 parts (1p1n1u) 2905 | -9/Materials | Discovered new exit (range 15) 3271 | -9/Materials | Discovered new exit (range 6) 3294 | -9/Materials | Discovered new exit (range 13) 3305 | -9/Materials | Entered Mines 3311 | -9/Mines | Assembled infested the area 3359 | -9/Mines | Crushed by falling debris 3359 | -9/Mines | Smashed by cave-in Last Messages --------------- 03294_ K-01 Serf cleans the Processing Tank. LOCATION=UNKNOWN GOAL=ESCAPE 03306_ A derelict emerges from the shadows: "What are you doing alone down here?" 03308_ Y7-TJ4(g): "Well, at least you look like you can take care of yourself!" 03310_ Y7-TJ4(g): "I have the funny feeling that things are about to get a lot worse around here, see you around!" 03310_ Y7-TJ4(g) slips back into the shadows. 03311_ ALERT: Infestation in the mines, dispatching Demolisher response squad. 03359_ The unstable cave ceiling collapses. 03359_ Crushed by falling debris. 03359_ Mining Laser destroyed. 03359_ System corrupted by crushing effect (+5). 03359_ Mining Laser destroyed. 03359_ System corrupted by crushing effect (+4). Map ----- +----------------------------------------------------+ | | | | | ???????????????????????????????????? | | ???????????????????????????????????? | | ???????????????????????????????????? | | ???????????????????????????????????? | | ???????????????????????????????????? | | ???????????????????????????????????? | | ???????????????????????????????????? | | ???????????????????????????????????? | | ???????????????????????????????????? | | ???????????????????????????????????? | | ???????????????????????????????????? | | ???????????????????????????????????? | | ???????????????????????????????????? | | ???????????????????????????????????? | | ???????????????????????????????????? | | ???????????????????????????????????? | | ???????????????????????????????????? | | ???????????????????????????????????? | | ???????????????????????????????????? | | ???????????????????????????????????? | | ??????????????????????????#####????? | | ???????????????????????#### ";##???? | | ???????????????????????# #;; ##??? | | ????????????????????????#@; #??? | | ????????????????????????## #??? | | ?????????????????????????## #??? | | ??????????????????????????## ##??? | | ???????????????????????????## ##???? | | ????????????????????????????#t#????? | | ????????????????????????????# #????? | | ???????????????????????????? #????? | | ???????????????????????????? ##????? | | ???????????????????????????? ??????? | | ???????????????????????????? ??????? | | ???????????????????????????? ??????? | | ???????????????????????????? ??????? | | ??????????????????????????? ??????? | | ??????????????????????????? ??????? | | ??????????????????????????? ??????? | | ??????????????????????????? ???????? | | ??????????????????????????? ???????? | | ???????????????????????????#???????? | | ???????????????????????????????????? | | ???????????????????????????????????? | | ???????????????????????????????????? | | ???????????????????????????????????? | | ???????????????????????????????????? | | ???????????????????????????????????? | +----------------------------------------------------+ Best States ------------- Heat Dissipation 42 Energy Generation 10 Energy Capacity 250 Matter Stores 300 Matter Capacity 300 Sight Range 18 Robot Scan Range 15 Terrain Scan Density 10 Armor Coverage 450 Evasion (%) 55 Recoil Reduction 3 Item Schematics ----------------- Mni. Grenade Launcher | -9/Materials | Scanalyzed Robot Schematics ------------------ None Fabricated ------------ Nothing Alien Tech Used ----------------- None Achievements -------------- None Challenges ------------ None Game ------ Seed DamperEfficiencyPlating Manual? 0 Play Time 00:59:17 Cumulative 3.0 hours Start 2024.04.09 @ 20:47:46 End 2024.04.09 @ 21:57:32 Sessions 1 Manual Loads 0 Difficulty Rogue Special Mode None Game No. 2 Rogue 1 Adventurer 0 Explorer 1 Win Type - Total 0 Types 0/0/0/0/0/0/0/0/0 Lore% 1 Gallery% 9 Achievement% 9 Wizard Run 0 Options --------- Layout 1 ASCII 0 Keyboard 0 Movement Mouse Keybinds 0 Fullscreen 2 Font 48/Smallcaps Map View 50x35 Zoom Use 0% Tactical HUD 1 Map Filters NONE Filters NONE Steam 1 RUN: 677f9f4d-8f2c-4a63-9738-cff180f342ca